[Event "Early-Titled-Tuesday-Blitz-March-26-2024"]
[Site "Chess.com"]
[Date "2024.03.26"]
[Round "10"]
[White "maurovargas01"]
[Black "Dewarfd"]
[Result "0-1"]
[WhiteElo "1846"]
[BlackElo "2151"]
[TimeControl "180+1"]
[EndTime "9:51:10 PDT"]
[Termination "Dewarfd won by checkmate"]

1. e4 {[%clk 0:02:59]} 1... c5 {[%clk 0:02:58.5]} 2. Nc3 {[%clk 0:02:57.8]} 2...
g6 {[%clk 0:02:57.1]} 3. f4 {[%clk 0:02:58.7]} 3... Bg7 {[%clk 0:02:53.7]} 4.
Nf3 {[%clk 0:02:59.6]} 4... e6 {[%clk 0:02:53.8]} 5. d3 {[%clk 0:02:59.8]} 5...
d5 {[%clk 0:02:53.9]} 6. e5 {[%clk 0:02:59.6]} 6... f6 {[%clk 0:02:46.4]} 7.
exf6 {[%clk 0:02:59]} 7... Nxf6 {[%clk 0:02:46.3]} 8. g3 {[%clk 0:02:55.3]} 8...
O-O {[%clk 0:02:45.7]} 9. Bg2 {[%clk 0:02:55.4]} 9... Nc6 {[%clk 0:02:45.8]} 10.
O-O {[%clk 0:02:52.8]} 10... e5 {[%clk 0:02:38.2]} 11. fxe5 {[%clk 0:02:51]}
11... Ng4 {[%clk 0:02:37.8]} 12. Qe1 {[%clk 0:02:48.3]} 12... Ngxe5 {[%clk
0:02:34.3]} 13. Nxe5 {[%clk 0:02:31.5]} 13... Rxf1+ {[%clk 0:02:31.8]} 14. Qxf1
{[%clk 0:02:18.7]} 14... Nxe5 {[%clk 0:02:29.1]} 15. Bxd5+ {[%clk 0:02:18.4]}
15... Kh8 {[%clk 0:02:29.3]} 16. Bb3 {[%clk 0:02:10.9]} 16... c4 {[%clk
0:02:26.2]} 17. dxc4 {[%clk 0:02:05.9]} 17... Qb6+ {[%clk 0:02:04.4]} 18. Kg2
{[%clk 0:01:56]} 18... Bg4 {[%clk 0:01:51.4]} 19. h3 {[%clk 0:01:45.4]} 19...
Rf8 {[%clk 0:01:45.2]} 20. Nd5 {[%clk 0:01:33.9]} 20... Qd4 {[%clk 0:01:32.9]}
21. Qe2 {[%clk 0:01:05.7]} 21... Bxe2 {[%clk 0:01:30.5]} 22. Be3 {[%clk
0:01:02]} 22... Qe4+ {[%clk 0:01:27.2]} 23. Kh2 {[%clk 0:00:59.5]} 23... Bh6
{[%clk 0:01:17.8]} 24. Nf4 {[%clk 0:00:52.9]} 24... Qxe3 {[%clk 0:01:15.3]} 25.
Rg1 {[%clk 0:00:48.2]} 25... Bxf4 {[%clk 0:01:13.2]} 26. gxf4 {[%clk 0:00:45.3]}
26... Nf3+ {[%clk 0:01:13.1]} 27. Kg2 {[%clk 0:00:43.9]} 27... Qxg1# {[%clk
0:01:13.2]} 0-1

[Event "Early-Titled-Tuesday-Blitz-March-26-2024"]
[Site "Chess.com"]
[Date "2024.03.26"]
[Round "10"]
[White "Hui_Li_Macau"]
[Black "Shuvalov"]
[Result "0-1"]
[WhiteElo "2384"]
[BlackElo "2585"]
[TimeControl "180+1"]
[EndTime "9:51:14 PDT"]
[Termination "Shuvalov won by resignation"]

1. e4 {[%clk 0:03:00.9]} 1... e6 {[%clk 0:03:00]} 2. d4 {[%clk 0:03:00.7]} 2...
d5 {[%clk 0:03:00.5]} 3. Nd2 {[%clk 0:03:01.3]} 3... c5 {[%clk 0:03:00.3]} 4.
exd5 {[%clk 0:03:01.6]} 4... exd5 {[%clk 0:03:01.2]} 5. Ngf3 {[%clk 0:03:02.5]}
5... Nc6 {[%clk 0:03:01.7]} 6. Bb5 {[%clk 0:03:02.7]} 6... Qe7+ {[%clk
0:03:01.2]} 7. Be2 {[%clk 0:03:01.7]} 7... Qc7 {[%clk 0:03:01.1]} 8. O-O {[%clk
0:02:57.1]} 8... Nf6 {[%clk 0:03:00.6]} 9. Re1 {[%clk 0:02:54.1]} 9... Be6
{[%clk 0:02:59.9]} 10. dxc5 {[%clk 0:02:48.8]} 10... Bxc5 {[%clk 0:03:00.8]} 11.
Nb3 {[%clk 0:02:47.5]} 11... Bb6 {[%clk 0:03:00.4]} 12. Bd3 {[%clk 0:02:28.2]}
12... O-O {[%clk 0:02:56.1]} 13. Be3 {[%clk 0:02:22.9]} 13... Rae8 {[%clk
0:02:46.9]} 14. c3 {[%clk 0:02:10.1]} 14... Bg4 {[%clk 0:02:43.6]} 15. Bxb6
{[%clk 0:02:05.8]} 15... Qxb6 {[%clk 0:02:39.8]} 16. Rxe8 {[%clk 0:01:27.9]}
16... Rxe8 {[%clk 0:02:39.4]} 17. h3 {[%clk 0:01:06]} 17... Bh5 {[%clk
0:02:36.8]} 18. g4 {[%clk 0:00:59.9]} 18... Bg6 {[%clk 0:02:36.2]} 19. Bxg6
{[%clk 0:00:58.4]} 19... hxg6 {[%clk 0:02:36.5]} 20. Nfd4 {[%clk 0:00:55.6]}
20... a5 {[%clk 0:02:29.6]} 21. Nxc6 {[%clk 0:00:48.3]} 21... bxc6 {[%clk
0:02:29]} 22. Qd4 {[%clk 0:00:48.7]} 22... Qa6 {[%clk 0:02:15.2]} 23. Rd1 {[%clk
0:00:39.3]} 23... a4 {[%clk 0:02:07.2]} 24. Nc5 {[%clk 0:00:38.7]} 24... Qe2
{[%clk 0:02:07.4]} 25. Nxa4 {[%clk 0:00:20.6]} 25... Re4 {[%clk 0:02:02.4]} 26.
Rd2 {[%clk 0:00:03.9]} 26... Qe1+ {[%clk 0:01:58.9]} 27. Kg2 {[%clk 0:00:04.2]}
27... Rxd4 {[%clk 0:01:58.6]} 28. Rxd4 {[%clk 0:00:04.8]} 28... Ne4 {[%clk
0:01:57.4]} 0-1

[Event "Early-Titled-Tuesday-Blitz-March-26-2024"]
[Site "Chess.com"]
[Date "2024.03.26"]
[Round "10"]
[White "arenal72"]
[Black "Kirill_Klukin"]
[Result "0-1"]
[WhiteElo "2612"]
[BlackElo "2825"]
[TimeControl "180+1"]
[EndTime "9:51:24 PDT"]
[Termination "Kirill_Klukin won by checkmate"]

1. Nf3 {[%clk 0:03:00.9]} 1... d5 {[%clk 0:02:51.1]} 2. g3 {[%clk 0:03:00.8]}
2... Nf6 {[%clk 0:02:49.5]} 3. Bg2 {[%clk 0:03:00.5]} 3... e6 {[%clk 0:02:49.9]}
4. O-O {[%clk 0:03:00.2]} 4... Be7 {[%clk 0:02:50.6]} 5. d3 {[%clk 0:02:59.5]}
5... O-O {[%clk 0:02:50.5]} 6. Nbd2 {[%clk 0:02:59.3]} 6... c5 {[%clk
0:02:51.1]} 7. e4 {[%clk 0:02:59.4]} 7... Nc6 {[%clk 0:02:52]} 8. Qe2 {[%clk
0:02:59.4]} 8... Qc7 {[%clk 0:02:49.4]} 9. c3 {[%clk 0:02:55.9]} 9... b5 {[%clk
0:02:49]} 10. h4 {[%clk 0:02:41.6]} 10... a5 {[%clk 0:02:46.3]} 11. exd5 {[%clk
0:02:29.9]} 11... Nxd5 {[%clk 0:02:45.9]} 12. Ne4 {[%clk 0:02:21.9]} 12... Bb7
{[%clk 0:02:42.7]} 13. Bg5 {[%clk 0:02:19.9]} 13... Rfd8 {[%clk 0:02:37]} 14.
Rad1 {[%clk 0:02:17.7]} 14... h6 {[%clk 0:02:33.6]} 15. Bc1 {[%clk 0:02:08.6]}
15... Nf6 {[%clk 0:02:30.2]} 16. Nxf6+ {[%clk 0:01:58.8]} 16... Bxf6 {[%clk
0:02:30.2]} 17. Nh2 {[%clk 0:01:58.4]} 17... Ne5 {[%clk 0:02:15.3]} 18. Bxb7
{[%clk 0:01:44]} 18... Qxb7 {[%clk 0:02:15.4]} 19. Bf4 {[%clk 0:01:42.4]} 19...
Ng6 {[%clk 0:02:09.3]} 20. Be3 {[%clk 0:01:39.8]} 20... Rd5 {[%clk 0:02:09]} 21.
Ng4 {[%clk 0:01:32.8]} 21... Be7 {[%clk 0:02:08.7]} 22. h5 {[%clk 0:01:28.2]}
22... Ne5 {[%clk 0:01:53]} 23. Nxe5 {[%clk 0:01:12.3]} 23... Rxe5 {[%clk
0:01:53]} 24. Qg4 {[%clk 0:01:04.7]} 24... Bg5 {[%clk 0:01:49.2]} 25. Rfe1
{[%clk 0:00:55.6]} 25... Bxe3 {[%clk 0:01:45.1]} 26. Rxe3 {[%clk 0:00:53.9]}
26... Rg5 {[%clk 0:01:40.3]} 27. Qe2 {[%clk 0:00:49.4]} 27... Rd8 {[%clk
0:01:31.9]} 28. d4 {[%clk 0:00:44.4]} 28... cxd4 {[%clk 0:01:27.8]} 29. cxd4
{[%clk 0:00:42.4]} 29... Qd5 {[%clk 0:01:24]} 30. b3 {[%clk 0:00:29.7]} 30...
Rxh5 {[%clk 0:01:23]} 31. Rc3 {[%clk 0:00:28.9]} 31... Qh1# {[%clk 0:01:22.8]}
0-1

[Event "Early-Titled-Tuesday-Blitz-March-26-2024"]
[Site "Chess.com"]
[Date "2024.03.26"]
[Round "10"]
[White "Roedor"]
[Black "Incognizance"]
[Result "1-0"]
[WhiteElo "2413"]
[BlackElo "1917"]
[TimeControl "180+1"]
[EndTime "9:51:25 PDT"]
[Termination "Roedor won by resignation"]

1. c4 {[%clk 0:01:35.9]} 1... e5 {[%clk 0:02:59.9]} 2. g3 {[%clk 0:01:30.4]}
2... Nc6 {[%clk 0:02:59.9]} 3. Bg2 {[%clk 0:01:30.1]} 3... a6 {[%clk 0:03:00.4]}
4. Nc3 {[%clk 0:01:30.1]} 4... Bc5 {[%clk 0:03:00.7]} 5. a3 {[%clk 0:01:29.6]}
5... Ba7 {[%clk 0:03:00.4]} 6. e3 {[%clk 0:01:30.1]} 6... d6 {[%clk 0:03:00.6]}
7. Nge2 {[%clk 0:01:30.7]} 7... Nge7 {[%clk 0:02:59.8]} 8. O-O {[%clk
0:01:30.8]} 8... h5 {[%clk 0:03:00.1]} 9. h4 {[%clk 0:01:30.3]} 9... Bg4 {[%clk
0:02:59.4]} 10. f3 {[%clk 0:01:26.6]} 10... Be6 {[%clk 0:02:58.5]} 11. b3 {[%clk
0:01:26.1]} 11... Qd7 {[%clk 0:02:58]} 12. d4 {[%clk 0:01:25.8]} 12... exd4
{[%clk 0:02:46.7]} 13. exd4 {[%clk 0:01:26.7]} 13... Bh3 {[%clk 0:02:41]} 14.
Be3 {[%clk 0:01:25.8]} 14... Bxg2 {[%clk 0:02:40.3]} 15. Kxg2 {[%clk 0:01:26.7]}
15... Nf5 {[%clk 0:02:38.4]} 16. Bf2 {[%clk 0:01:25.9]} 16... O-O-O {[%clk
0:02:36.8]} 17. d5 {[%clk 0:01:22.4]} 17... Bxf2 {[%clk 0:02:19.2]} 18. dxc6
{[%clk 0:01:19.6]} 18... Ne3+ {[%clk 0:02:18.9]} 19. Kh2 {[%clk 0:01:15.2]}
19... Nxd1 {[%clk 0:02:18.8]} 20. cxd7+ {[%clk 0:01:14.7]} 20... Rxd7 {[%clk
0:02:18.9]} 21. Raxd1 {[%clk 0:01:14.5]} 21... Bb6 {[%clk 0:02:11.7]} 22. Nd5
{[%clk 0:01:12.9]} 22... Re8 {[%clk 0:02:08.6]} 23. Nxb6+ {[%clk 0:01:12.4]}
23... cxb6 {[%clk 0:02:08.7]} 24. Nf4 {[%clk 0:01:10.1]} 24... g6 {[%clk
0:02:07.2]} 25. Kg2 {[%clk 0:01:09.2]} 25... Kc7 {[%clk 0:02:04.7]} 26. Kf2
{[%clk 0:01:09.4]} 26... b5 {[%clk 0:02:00.9]} 27. cxb5 {[%clk 0:01:07.7]} 27...
axb5 {[%clk 0:02:01.2]} 28. Rfe1 {[%clk 0:01:08.1]} 28... Ra8 {[%clk 0:02:01.2]}
29. Rc1+ {[%clk 0:01:04.1]} 29... Kd8 {[%clk 0:01:59]} 30. Ra1 {[%clk
0:00:51.8]} 30... Rc8 {[%clk 0:01:52]} 31. Rec1 {[%clk 0:00:49.5]} 31... Rc5
{[%clk 0:01:44.9]} 32. b4 {[%clk 0:00:46]} 32... Rc4 {[%clk 0:01:42.8]} 33. Nd5
{[%clk 0:00:41.9]} 33... Rxc1 {[%clk 0:01:40]} 34. Rxc1 {[%clk 0:00:40.9]} 34...
f5 {[%clk 0:01:29.4]} 35. f4 {[%clk 0:00:40.8]} 35... Rh7 {[%clk 0:01:25.3]} 36.
Re1 {[%clk 0:00:39.5]} 36... Kd7 {[%clk 0:01:24.4]} 37. Nf6+ {[%clk 0:00:38.4]}
1-0

[Event "Early-Titled-Tuesday-Blitz-March-26-2024"]
[Site "Chess.com"]
[Date "2024.03.26"]
[Round "10"]
[White "Gorbaev"]
[Black "CURRUTACO59"]
[Result "1-0"]
[WhiteElo "2475"]
[BlackElo "2276"]
[TimeControl "180+1"]
[EndTime "9:51:41 PDT"]
[Termination "Gorbaev won on time"]

1. Nf3 {[%clk 0:02:59.7]} 1... Nf6 {[%clk 0:02:58.9]} 2. c4 {[%clk 0:02:59.2]}
2... e6 {[%clk 0:02:58.5]} 3. Nc3 {[%clk 0:02:58.3]} 3... Bb4 {[%clk 0:02:58.2]}
4. g4 {[%clk 0:02:56.5]} 4... O-O {[%clk 0:02:40.7]} 5. g5 {[%clk 0:02:55.6]}
5... Ne8 {[%clk 0:02:36.3]} 6. Rg1 {[%clk 0:02:55.3]} 6... d5 {[%clk 0:02:32.9]}
7. e3 {[%clk 0:02:52.1]} 7... c5 {[%clk 0:02:28.6]} 8. Qc2 {[%clk 0:02:49]} 8...
Nc6 {[%clk 0:02:25]} 9. a3 {[%clk 0:02:47.7]} 9... Ba5 {[%clk 0:02:18.9]} 10. b3
{[%clk 0:02:45.1]} 10... d4 {[%clk 0:02:08]} 11. Ne4 {[%clk 0:02:44.5]} 11...
Qe7 {[%clk 0:01:49.5]} 12. Bb2 {[%clk 0:02:43.7]} 12... e5 {[%clk 0:01:45.9]}
13. Bd3 {[%clk 0:02:41]} 13... Kh8 {[%clk 0:01:36.8]} 14. O-O-O {[%clk
0:02:21.4]} 14... Bf5 {[%clk 0:01:25.7]} 15. Rde1 {[%clk 0:02:09]} 15... a6
{[%clk 0:01:18.9]} 16. exd4 {[%clk 0:02:07.3]} 16... cxd4 {[%clk 0:01:11.6]} 17.
Ng3 {[%clk 0:01:49]} 17... Bxd3 {[%clk 0:01:10]} 18. Qxd3 {[%clk 0:01:49.2]}
18... Qe6 {[%clk 0:00:40.5]} 19. Kb1 {[%clk 0:01:32.2]} 19... Nd6 {[%clk
0:00:38.6]} 20. Nxd4 {[%clk 0:01:20.5]} 20... Nxd4 {[%clk 0:00:34.9]} 21. Bxd4
{[%clk 0:01:20.1]} 21... Qd7 {[%clk 0:00:05.4]} 22. Rxe5 {[%clk 0:01:17.7]}
22... b5 {[%clk 0:00:04]} 23. c5 {[%clk 0:01:13.2]} 1-0

[Event "Early-Titled-Tuesday-Blitz-March-26-2024"]
[Site "Chess.com"]
[Date "2024.03.26"]
[Round "10"]
[White "Attacker_2006"]
[Black "MikeWizard"]
[Result "1-0"]
[WhiteElo "2406"]
[BlackElo "2090"]
[TimeControl "180+1"]
[EndTime "9:51:42 PDT"]
[Termination "Attacker_2006 won by checkmate"]

1. g4 {[%clk 0:03:00.9]} 1... g6 {[%clk 0:02:49.7]} 2. h4 {[%clk 0:02:59.5]}
2... h5 {[%clk 0:02:48.3]} 3. f3 {[%clk 0:02:53.2]} 3... d6 {[%clk 0:02:45.1]}
4. g5 {[%clk 0:02:50.3]} 4... Bg7 {[%clk 0:02:41.3]} 5. d3 {[%clk 0:02:46.5]}
5... b6 {[%clk 0:02:40.7]} 6. e4 {[%clk 0:02:46.3]} 6... Bb7 {[%clk 0:02:40.2]}
7. Kf2 {[%clk 0:02:46.7]} 7... Nd7 {[%clk 0:02:39.8]} 8. Kg2 {[%clk 0:02:47.4]}
8... e5 {[%clk 0:02:34.8]} 9. Kh2 {[%clk 0:02:48]} 9... Ne7 {[%clk 0:02:34.5]}
10. Bh3 {[%clk 0:02:48.6]} 10... O-O {[%clk 0:02:31.4]} 11. Ne2 {[%clk
0:02:49.4]} 11... d5 {[%clk 0:02:28.6]} 12. Nd2 {[%clk 0:02:47]} 12... c5 {[%clk
0:02:28.2]} 13. Nf1 {[%clk 0:02:47.1]} 13... Rc8 {[%clk 0:02:23.4]} 14. c4
{[%clk 0:02:47.8]} 14... d4 {[%clk 0:02:18.5]} 15. f4 {[%clk 0:02:46.7]} 15...
exf4 {[%clk 0:02:17.4]} 16. Bxf4 {[%clk 0:02:47.6]} 16... Ra8 {[%clk 0:02:12]}
17. Neg3 {[%clk 0:02:47.9]} 17... Ne5 {[%clk 0:02:09.7]} 18. Nxh5 {[%clk
0:02:46.7]} 18... gxh5 {[%clk 0:02:06.5]} 19. Qxh5 {[%clk 0:02:47.6]} 19... N7g6
{[%clk 0:02:06.4]} 20. Bf5 {[%clk 0:02:45.4]} 20... Bc8 {[%clk 0:01:59.3]} 21.
Bd2 {[%clk 0:02:43.3]} 21... Bxf5 {[%clk 0:01:52.7]} 22. exf5 {[%clk 0:02:44.2]}
22... Qd6 {[%clk 0:01:46]} 23. Ng3 {[%clk 0:02:41.8]} 23... Nxd3 {[%clk
0:01:36.9]} 24. f6 {[%clk 0:02:35.7]} 24... Bxf6 {[%clk 0:01:32.6]} 25. gxf6
{[%clk 0:02:36.6]} 25... Qxf6 {[%clk 0:01:32.5]} 26. Raf1 {[%clk 0:02:33.1]}
26... Qxh4+ {[%clk 0:01:32.1]} 27. Kg2 {[%clk 0:02:27.5]} 27... Qxh5 {[%clk
0:01:26.6]} 28. Nxh5 {[%clk 0:02:24.3]} 28... f5 {[%clk 0:01:20.8]} 29. Rfg1
{[%clk 0:02:16.8]} 29... Kf7 {[%clk 0:01:18.6]} 30. Ng3 {[%clk 0:02:16.3]} 30...
Kf6 {[%clk 0:01:06.7]} 31. Rf1 {[%clk 0:02:11.8]} 31... f4 {[%clk 0:00:58.4]}
32. Ne4+ {[%clk 0:02:10.5]} 32... Ke5 {[%clk 0:00:54.6]} 33. Ng5 {[%clk
0:02:09.6]} 33... Rf5 {[%clk 0:00:50.1]} 34. Nf3+ {[%clk 0:02:08.7]} 34... Kf6
{[%clk 0:00:42.5]} 35. Rh7 {[%clk 0:02:07]} 35... Nde5 {[%clk 0:00:28.4]} 36.
Ne1 {[%clk 0:02:05.5]} 36... Rg8 {[%clk 0:00:25]} 37. Kf2 {[%clk 0:02:04.9]}
37... Nxc4 {[%clk 0:00:19.9]} 38. Bc1 {[%clk 0:02:04.8]} 38... Ne3 {[%clk
0:00:17.8]} 39. Rg1 {[%clk 0:02:02.7]} 39... Ne7 {[%clk 0:00:15]} 40. Rh6+
{[%clk 0:01:58.8]} 40... Rg6 {[%clk 0:00:14]} 41. Rgh1 {[%clk 0:01:59.4]} 41...
Rxh6 {[%clk 0:00:13.4]} 42. Rxh6+ {[%clk 0:02:00.3]} 42... Ke5 {[%clk
0:00:11.4]} 43. Nf3+ {[%clk 0:02:00.2]} 43... Ke4 {[%clk 0:00:11.3]} 44. Ke2
{[%clk 0:02:00.6]} 44... N7d5 {[%clk 0:00:09.5]} 45. Re6+ {[%clk 0:02:00.1]}
45... Re5 {[%clk 0:00:03.5]} 46. Rxe5# {[%clk 0:02:01]} 1-0

[Event "Early-Titled-Tuesday-Blitz-March-26-2024"]
[Site "Chess.com"]
[Date "2024.03.26"]
[Round "10"]
[White "rcmz"]
[Black "Kavyev_Ruslan"]
[Result "0-1"]
[WhiteElo "2205"]
[BlackElo "2381"]
[TimeControl "180+1"]
[EndTime "9:51:55 PDT"]
[Termination "Kavyev_Ruslan won by resignation"]

1. b4 {[%clk 0:03:00.9]} 1... e5 {[%clk 0:02:57.4]} 2. Bb2 {[%clk 0:03:00.6]}
2... f6 {[%clk 0:02:56.1]} 3. b5 {[%clk 0:02:58.4]} 3... d5 {[%clk 0:02:56]} 4.
e3 {[%clk 0:02:57.4]} 4... a6 {[%clk 0:02:49.1]} 5. c4 {[%clk 0:02:56.4]} 5...
axb5 {[%clk 0:02:33.4]} 6. cxb5 {[%clk 0:02:55.2]} 6... c6 {[%clk 0:02:29.5]} 7.
Nf3 {[%clk 0:02:48]} 7... Be6 {[%clk 0:02:24.9]} 8. Be2 {[%clk 0:02:40.7]} 8...
Bd6 {[%clk 0:02:13.7]} 9. O-O {[%clk 0:02:37.8]} 9... Ne7 {[%clk 0:02:13.2]} 10.
a4 {[%clk 0:02:34.9]} 10... O-O {[%clk 0:02:11]} 11. d3 {[%clk 0:02:34.9]} 11...
cxb5 {[%clk 0:01:52.5]} 12. axb5 {[%clk 0:02:33.6]} 12... Rxa1 {[%clk
0:01:53.4]} 13. Bxa1 {[%clk 0:02:33.2]} 13... Qa5 {[%clk 0:01:54]} 14. Nc3
{[%clk 0:02:33.2]} 14... Bb4 {[%clk 0:01:53]} 15. Qb3 {[%clk 0:02:26.4]} 15...
Nd7 {[%clk 0:01:31.2]} 16. d4 {[%clk 0:02:11.3]} 16... e4 {[%clk 0:01:18.9]} 17.
Nxe4 {[%clk 0:02:02.7]} 17... Bf7 {[%clk 0:01:08.6]} 18. Ng3 {[%clk 0:02:00]}
18... Rc8 {[%clk 0:01:05.9]} 19. Bb2 {[%clk 0:01:57.7]} 19... Bd6 {[%clk
0:00:51]} 20. Bd3 {[%clk 0:01:53.3]} 20... Nb6 {[%clk 0:00:49.5]} 21. Nf5 {[%clk
0:01:22.4]} 21... Nxf5 {[%clk 0:00:47.7]} 22. Bxf5 {[%clk 0:01:22.1]} 22... Rc7
{[%clk 0:00:42.5]} 23. h3 {[%clk 0:01:11.6]} 23... Nc4 {[%clk 0:00:42.1]} 24.
Ra1 {[%clk 0:00:59.4]} 24... Nxb2 {[%clk 0:00:21.9]} 25. Rxa5 {[%clk 0:00:56.4]}
25... Rc1+ {[%clk 0:00:20.3]} 0-1

[Event "Early-Titled-Tuesday-Blitz-March-26-2024"]
[Site "Chess.com"]
[Date "2024.03.26"]
[Round "10"]
[White "flawian2008"]
[Black "Chess_Gainz"]
[Result "1-0"]
[WhiteElo "2427"]
[BlackElo "2527"]
[TimeControl "180+1"]
[EndTime "9:52:10 PDT"]
[Termination "flawian2008 won by resignation"]

1. e4 {[%clk 0:02:52.3]} 1... c5 {[%clk 0:02:59.8]} 2. Nf3 {[%clk 0:02:52.1]}
2... Nc6 {[%clk 0:02:59.9]} 3. Bb5 {[%clk 0:02:52.2]} 3... g6 {[%clk 0:03:00]}
4. O-O {[%clk 0:02:52.6]} 4... Bg7 {[%clk 0:03:00.1]} 5. Re1 {[%clk 0:02:53.2]}
5... e5 {[%clk 0:02:59.7]} 6. b4 {[%clk 0:02:53]} 6... Nxb4 {[%clk 0:02:58.8]}
7. Bb2 {[%clk 0:02:50.5]} 7... a6 {[%clk 0:02:56.2]} 8. a3 {[%clk 0:02:50.8]}
8... axb5 {[%clk 0:02:55.5]} 9. axb4 {[%clk 0:02:51.3]} 9... Rxa1 {[%clk
0:02:56.4]} 10. Bxa1 {[%clk 0:02:51.9]} 10... cxb4 {[%clk 0:02:57.3]} 11. d4
{[%clk 0:02:52.2]} 11... d6 {[%clk 0:02:04.8]} 12. dxe5 {[%clk 0:02:21.8]} 12...
dxe5 {[%clk 0:02:04.4]} 13. Qe2 {[%clk 0:02:22.3]} 13... Qc7 {[%clk 0:01:31.4]}
14. Qxb5+ {[%clk 0:02:07.1]} 14... Bd7 {[%clk 0:01:31.9]} 15. Qxb4 {[%clk
0:02:07.7]} 15... Ne7 {[%clk 0:01:30.6]} 16. Na3 {[%clk 0:02:03.1]} 16... Nc6
{[%clk 0:01:30.7]} 17. Qc5 {[%clk 0:02:03.4]} 17... Bf8 {[%clk 0:01:31]} 18. Nb5
{[%clk 0:01:58.1]} 18... Bxc5 {[%clk 0:01:28.9]} 19. Nxc7+ {[%clk 0:01:58.7]}
19... Kd8 {[%clk 0:01:22.9]} 20. Nd5 {[%clk 0:01:58.7]} 20... Re8 {[%clk
0:01:17.1]} 21. Rb1 {[%clk 0:01:57.6]} 21... Kc8 {[%clk 0:01:13.8]} 22. Bc3
{[%clk 0:01:54.6]} 22... Nd4 {[%clk 0:00:58.1]} 23. Ra1 {[%clk 0:01:48.2]} 23...
Kb8 {[%clk 0:00:52.7]} 24. Bxd4 {[%clk 0:01:36.2]} 24... exd4 {[%clk 0:00:50.4]}
25. Nf6 {[%clk 0:01:36.6]} 25... Re7 {[%clk 0:00:49.6]} 26. Nxd7+ {[%clk
0:01:37.1]} 26... Rxd7 {[%clk 0:00:49.8]} 27. Ne1 {[%clk 0:01:32.8]} 27... Re7
{[%clk 0:00:47.6]} 28. Nd3 {[%clk 0:01:27.9]} 28... Bd6 {[%clk 0:00:47]} 29. Re1
{[%clk 0:01:22.8]} 29... Rc7 {[%clk 0:00:38.8]} 30. Re2 {[%clk 0:01:23]} 30...
f6 {[%clk 0:00:38]} 31. f4 {[%clk 0:01:23.1]} 31... Kc8 {[%clk 0:00:32.3]} 32.
e5 {[%clk 0:01:21.8]} 32... fxe5 {[%clk 0:00:33.2]} 33. fxe5 {[%clk 0:01:22.7]}
33... Be7 {[%clk 0:00:33.5]} 34. Kf2 {[%clk 0:01:13.6]} 34... Bg5 {[%clk
0:00:33]} 35. Kf3 {[%clk 0:01:13.1]} 35... Be3 {[%clk 0:00:31.6]} 36. Ke4 {[%clk
0:01:13.6]} 36... Kd7 {[%clk 0:00:30.9]} 37. Kd5 {[%clk 0:01:12.4]} 37... Ke7
{[%clk 0:00:28]} 38. h4 {[%clk 0:01:05.9]} 38... h5 {[%clk 0:00:24.5]} 39. g3
{[%clk 0:00:59.4]} 39... Rd7+ {[%clk 0:00:23.4]} 40. Ke4 {[%clk 0:00:59.8]}
40... Ke6 {[%clk 0:00:22]} 41. Nc5+ {[%clk 0:00:59.5]} 1-0

[Event "Early-Titled-Tuesday-Blitz-March-26-2024"]
[Site "Chess.com"]
[Date "2024.03.26"]
[Round "10"]
[White "ChessSwole"]
[Black "Happy1712Drummer"]
[Result "1-0"]
[WhiteElo "2671"]
[BlackElo "2453"]
[TimeControl "180+1"]
[EndTime "9:52:13 PDT"]
[Termination "ChessSwole won by resignation"]

1. d4 {[%clk 0:03:00.9]} 1... d5 {[%clk 0:02:59.6]} 2. c4 {[%clk 0:03:01.1]}
2... e6 {[%clk 0:02:59.8]} 3. Nf3 {[%clk 0:03:01.6]} 3... c5 {[%clk 0:02:59]} 4.
cxd5 {[%clk 0:03:00.3]} 4... exd5 {[%clk 0:02:59.3]} 5. g3 {[%clk 0:02:58.7]}
5... Nc6 {[%clk 0:02:58.4]} 6. Bg2 {[%clk 0:02:58.7]} 6... Nf6 {[%clk 0:02:59]}
7. O-O {[%clk 0:02:58.9]} 7... Be7 {[%clk 0:02:57.2]} 8. dxc5 {[%clk 0:02:51.7]}
8... Bxc5 {[%clk 0:02:58.1]} 9. b3 {[%clk 0:02:52.2]} 9... O-O {[%clk
0:02:53.5]} 10. Bb2 {[%clk 0:02:52.2]} 10... Re8 {[%clk 0:02:53.9]} 11. Nc3
{[%clk 0:02:42.6]} 11... a6 {[%clk 0:02:47.5]} 12. Rc1 {[%clk 0:02:37.2]} 12...
Ba7 {[%clk 0:02:41.9]} 13. Na4 {[%clk 0:02:31.6]} 13... Bg4 {[%clk 0:02:38.6]}
14. Nc5 {[%clk 0:02:10]} 14... Qe7 {[%clk 0:02:04.8]} 15. Bxf6 {[%clk
0:02:00.3]} 15... gxf6 {[%clk 0:02:03.8]} 16. Qxd5 {[%clk 0:01:53.3]} 16... Rad8
{[%clk 0:01:23.7]} 17. Qc4 {[%clk 0:01:52.9]} 17... Bxf3 {[%clk 0:00:44.1]} 18.
Bxf3 {[%clk 0:01:48.2]} 18... Ne5 {[%clk 0:00:44.2]} 19. Qb4 {[%clk 0:01:29.7]}
19... Nxf3+ {[%clk 0:00:38.7]} 20. exf3 {[%clk 0:01:30.6]} 20... Rc8 {[%clk
0:00:24.9]} 21. Qg4+ {[%clk 0:01:29.3]} 21... Kh8 {[%clk 0:00:25.7]} 22. Ne4
{[%clk 0:01:24.1]} 22... Rxc1 {[%clk 0:00:22.8]} 23. Rxc1 {[%clk 0:01:25]} 23...
Rg8 {[%clk 0:00:18.5]} 24. Qf5 {[%clk 0:01:22.5]} 24... Bd4 {[%clk 0:00:18.7]}
25. Kg2 {[%clk 0:01:18.4]} 25... Rg6 {[%clk 0:00:15.7]} 26. Rd1 {[%clk
0:01:17.7]} 26... Be5 {[%clk 0:00:14.3]} 27. Rd7 {[%clk 0:01:14.9]} 27... Qe8
{[%clk 0:00:14.8]} 28. Rxb7 {[%clk 0:01:10.6]} 28... Kg7 {[%clk 0:00:13.6]} 29.
f4 {[%clk 0:01:10.1]} 29... Bb2 {[%clk 0:00:12.5]} 30. Nd6 {[%clk 0:01:09.9]}
30... Qc6+ {[%clk 0:00:12.1]} 31. Qe4 {[%clk 0:01:00.3]} 31... Qxd6 {[%clk
0:00:12.4]} 32. Qc4 {[%clk 0:00:58.7]} 32... a5 {[%clk 0:00:09.5]} 33. Qxf7+
{[%clk 0:00:58.2]} 1-0